[Event "Moscow Rapid-ch 2018"]
[Site "Moscow"]
[Date "2018.12.09"]
[Round "9"]
[White "Tarasov, Danila"]
[Black "Girshgorn, Leonid"]
[Result "1/2-1/2"]
[ECO "B15"]
[WhiteElo "1885"]
[BlackElo "2038"]
[Annotator "NA"]
[PlyCount "114"]
[EventDate "2018.12.08"]
[EventType "swiss"]
[EventCountry "RUS"]
[SourceTitle "playchess.com"]
[Source "ChessBase"]
[SourceQuality "1"]
[TimeControl "900+10"]

1. e4 {[%emt 0:00:00]} c6 {[%emt 0:00:00]} 2. Nc3 {[%emt 0:00:07]} d5 {[%emt 0:00:00]} 3. d4 {[%emt 0:00:02]} dxe4 {[%emt 0:00:00]} 4. Nxe4 {[%emt 0:00:01]} Nf6 {[%emt 0:00:00]} 5. Nxf6+ {[%emt 0:00:02]} exf6 {[%emt 0:00:00]} 6. g3 {[%emt 0:00:01]} Bd6 {[%emt 0:00:00]} 7. Bg2 {[%emt 0:00:01]} O-O {[%emt 0:00:01]} 8. Ne2 {[%emt 0:00:01]} Re8 {[%emt 0:00:02]} 9. O-O {[%emt 0:00:03]} Bg4 {[%emt 0:00:01]} 10. f3 {[%emt 0:00:01]} Bf5 {[%emt 0:00:04]} 11. Bf4 {[%emt 0:00:03]} Rxe2 {[%emt 0:00:35]} 12. Qxe2 {[%emt 0:00:10]} Bxf4 {[%emt 0:00:01]} 13. gxf4 {[%emt 0:00:04]} Qxd4+ {[%emt 0:00:01]} 14. Kh1 {[%emt 0:00:13]} Nd7 {[%emt 0:00:01]} 15. c3 {[%emt 0:00:50]} Qxf4 {[%emt 0:00:04]} 16. Rad1 {[%emt 0:00:02]} h5 {[%emt 0:02:03]} 17. Rd4 {[%emt 0:00:11]} Qe5 {[%emt 0:00:03]} 18. Qd2 {[%emt 0:00:31]} Nf8 {[%emt 0:00:06]} 19. Re1 {[%emt 0:00:09]} Qc7 {[%emt 0:00:01]} 20. Qf4 {[%emt 0:00:39]} Qxf4 {[%emt 0:00:28]} 21. Rxf4 {[%emt 0:00:02]} Be6 {[%emt 0:01:03]} 22. b3 {[%emt 0:00:33]} Rd8 {[%emt 0:00:50]} 23. Rd4 {[%emt 0:00:09]} Rxd4 {[%emt 0:00:02]} 24. cxd4 {[%emt 0:00:01]} Ng6 {[%emt 0:00:02]} 25. Bf1 {[%emt 0:00:41]} Nf4 {[%emt 0:00:26]} 26. Bc4 {[%emt 0:00:11]} Kf8 {[%emt 0:01:01]} 27. Bxe6 {[%emt 0:00:26]} Nxe6 {[%emt 0:00:01]} 28. Rd1 {[%emt 0:00:07]} Nf4 {[%emt 0:00:05]} 29. Kg1 {[%emt 0:00:11]} h4 {[%emt 0:00:03]} 30. Kf2 {[%emt 0:00:05]} Ke7 {[%emt 0:00:04]} 31. Ke3 {[%emt 0:00:12]} g5 {[%emt 0:00:11]} 32. Rb1 {[%emt 0:00:36]} Nd5+ {[%emt 0:00:45]} 33. Kd3 {[%emt 0:00:12]} a5 {[%emt 0:01:00]} 34. a3 {[%emt 0:00:06]} b5 {[%emt 0:00:59]} 35. Rc1 {[%emt 0:00:14]} Kd6 {[%emt 0:00:19]} 36. Rc5 {[%emt 0:00:27]} f5 {[%emt 0:03:22]} 37. a4 {[%emt 0:00:17]} Nf4+ {[%emt 0:01:28]} 38. Ke3 {[%emt 0:00:23]} Nd5+ {[%emt 0:00:08]} 39. Kf2 {[%emt 0:00:22]} bxa4 {[%emt 0:00:29]} 40. bxa4 {[%emt 0:00:04]} f4 {[%emt 0:01:08]} 41. Rxa5 {[%emt 0:00:20]} f5 {[%emt 0:00:01]} 42. Ra8 {[%emt 0:00:16]} g4 43. Rh8 {[%emt 0:01:12]} h3 {[%emt 0:00:17]} 44. Rg8 {[%emt 0:00:14]} Ne3 {[%emt 0:00:08]} 45. Rg7 {[%emt 0:00:40]} c5 {[%emt 0:00:47]} 46. dxc5+ {[%emt 0:00:05]} Kxc5 {[%emt 0:00:01]} 47. Rf7 {[%emt 0:00:28]} Kb4 {[%emt 0:01:09]} 48. fxg4 {[%emt 0:00:23]} Nxg4+ {[%emt 0:00:01]} 49. Kg1 {[%emt 0:01:24]} f3 {[%emt 0:00:01]} 50. Rxf5 {[%emt 0:00:05]} f2+ {[%emt 0:00:02]} 51. Rxf2 {[%emt 0:00:01]} Nxf2 {[%emt 0:00:01]} 52. Kxf2 {[%emt 0:00:02]} Kxa4 {[%emt 0:00:00]} 53. Kg3 {[%emt 0:00:02]} Kb5 {[%emt 0:00:01]} 54. Kxh3 {[%emt 0:00:02]} Kc6 {[%emt 0:00:01]} 55. Kg4 {[%emt 0:00:05]} Kd7 {[%emt 0:00:04]} 56. Kg5 {[%emt 0:00:08]} Ke7 {[%emt 0:00:02]} 57. Kg6 {[%emt 0:00:07]} Kf8 {[%emt 0:00:01]} 1/2-1/2

[Event "Moscow Rapid-ch 2018"]
[Site "Moscow"]
[Date "2018.12.09"]
[Round "10"]
[White "Kosteniuk, Alexandra"]
[Black "Dvalishvili, Pavel S."]
[Result "1/2-1/2"]
[ECO "B52"]
[WhiteElo "2537"]
[BlackElo "2396"]
[Annotator "ChessBase"]
[PlyCount "146"]
[EventDate "2018.12.08"]
[EventType "swiss"]
[EventCountry "RUS"]
[SourceTitle "playchess.com"]
[Source "ChessBase"]
[SourceQuality "1"]
[TimeControl "900+10"]

1. e4 {[%emt 0:00:00]} c5 {[%emt 0:00:00]} 2. Nf3 {[%emt 0:00:00]} d6 {[%emt 0:00:00]} 3. Bb5+ {[%emt 0:00:01]} Bd7 {[%emt 0:00:00]} 4. Bxd7+ {[%emt 0:00:01]} Nxd7 {[%emt 0:00:00]} 5. Qe2 {[%emt 0:00:19]} Ngf6 {[%emt 0:00:03]} 6. b3 {[%emt 0:00:14]} g6 {[%emt 0:00:07]} 7. Bb2 {[%emt 0:00:02]} Bg7 {[%emt 0:00:01]} 8. Nc3 {[%emt 0:00:29]} O-O {[%emt 0:00:02]} 9. h4 {[%emt 0:00:01]} a6 {[%emt 0:00:47]} 10. a4 {[%emt 0:00:39]} Re8 {[%emt 0:01:40]} 11. O-O {[%emt 0:02:30]} e6 {[%emt 0:00:28]} 12. Qd3 {[%emt 0:04:14]} Qe7 {[%emt 0:00:11]} 13. Rfe1 {[%emt 0:00:03]} Ng4 {[%emt 0:00:01]} 14. Nd1 {[%emt 0:00:48]} Nde5 {[%emt 0:00:19]} 15. Nxe5 Nxe5 {[%emt 0:00:35]} 16. Qg3 {[%emt 0:00:39]} h5 {[%emt 0:00:15]} 17. f4 {[%emt 0:00:26]} Ng4 {[%emt 0:00:04]} 18. Bxg7 Kxg7 {[%emt 0:00:02]} 19. Ne3 {[%emt 0:00:04]} Nxe3 {[%emt 0:00:06]} 20. Rxe3 {[%emt 0:00:10]} Qf6 {[%emt 0:00:23]} 21. Rf1 {[%emt 0:00:15]} Qd4 {[%emt 0:00:03]} 22. f5 {[%emt 0:01:06]} exf5 {[%emt 0:00:27]} 23. exf5 {[%emt 0:00:02]} Rxe3 {[%emt 0:01:55]} 24. dxe3 {[%emt 0:00:01]} Qe4 {[%emt 0:00:01]} 25. Qxd6 {[%emt 0:00:35]} Qxe3+ {[%emt 0:00:23]} 26. Kh2 {[%emt 0:00:09]} Re8 {[%emt 0:01:56]} 27. fxg6 {[%emt 0:00:35]} fxg6 {[%emt 0:00:03]} 28. Qf6+ {[%emt 0:00:07]} Kh6 {[%emt 0:00:01]} 29. Rf5 {[%emt 0:00:06]} Kh7 {[%emt 0:05:26]} 30. Qf7+ {[%emt 0:02:10]} Kh6 {[%emt 0:00:09]} 31. Qf6 {[%emt 0:00:38]} Kh7 {[%emt 0:00:02]} 32. Rd5 {[%emt 0:00:19]} Re7 {[%emt 0:01:05]} 33. Rg5 {[%emt 0:01:56]} Rg7 {[%emt 0:00:18]} 34. Re5 {[%emt 0:00:12]} Qd4 {[%emt 0:00:15]} 35. c3 {[%emt 0:00:02]} Qd1 {[%emt 0:00:28]} 36. Re7 {[%emt 0:00:21]} Rxe7 {[%emt 0:00:04]} 37. Qxe7+ {[%emt 0:00:01]} Kh6 {[%emt 0:00:18]} 38. Qf8+ {[%emt 0:00:01]} Kh7 {[%emt 0:00:01]} 39. Qf7+ {[%emt 0:00:18]} Kh6 {[%emt 0:00:03]} 40. Qxb7 {[%emt 0:00:57]} Qe1 {[%emt 0:01:03]} 41. Qxa6 {[%emt 0:00:32]} Qxh4+ {[%emt 0:00:02]} 42. Kg1 {[%emt 0:00:01]} Qe1+ {[%emt 0:00:04]} 43. Qf1 {[%emt 0:00:01]} Qxc3 {[%emt 0:00:07]} 44. Qf8+ {[%emt 0:00:07]} Kh7 {[%emt 0:00:01]} 45. Qf7+ {[%emt 0:00:01]} Kh6 {[%emt 0:00:03]} 46. Qc4 {[%emt 0:00:11]} Qe1+ {[%emt 0:00:16]} 47. Kh2 {[%emt 0:00:02]} g5 {[%emt 0:00:40]} 48. Qa6+ {[%emt 0:00:34]} Kg7 {[%emt 0:00:12]} 49. Qb7+ {[%emt 0:00:01]} Kg6 {[%emt 0:00:01]} 50. Qc6+ {[%emt 0:00:05]} Kg7 {[%emt 0:00:01]} 51. Qc7+ {[%emt 0:00:04]} Kg6 {[%emt 0:00:01]} 52. Qd6+ {[%emt 0:00:05]} Kg7 {[%emt 0:00:01]} 53. Qg3 {[%emt 0:00:03]} Qe7 {[%emt 0:00:16]} 54. a5 {[%emt 0:00:05]} h4 {[%emt 0:00:01]} 55. Qc3+ {[%emt 0:00:13]} Kg6 {[%emt 0:00:15]} 56. Qd3+ {[%emt 0:00:02]} Kh6 {[%emt 0:00:04]} 57. a6 {[%emt 0:00:17]} Qe5+ {[%emt 0:00:01]} 58. Kg1 {[%emt 0:00:01]} g4 {[%emt 0:00:28]} 59. Kf1 {[%emt 0:00:23]} Qa1+ {[%emt 0:00:38]} 60. Ke2 {[%emt 0:00:02]} Kg5 {[%emt 0:00:22]} 61. Qe3+ {[%emt 0:00:07]} Kf6 {[%emt 0:00:07]} 62. Qf4+ {[%emt 0:00:03]} Ke7 {[%emt 0:00:03]} 63. Qc7+ {[%emt 0:00:13]} Ke6 {[%emt 0:00:03]} 64. Qb6+ {[%emt 0:00:42]} Kd7 {[%emt 0:00:11]} 65. Qb7+ {[%emt 0:00:05]} Kd6 {[%emt 0:00:04]} 66. a7 {[%emt 0:00:11]} Qb2+ {[%emt 0:00:12]} 67. Kd1 {[%emt 0:00:12]} Qd4+ {[%emt 0:00:33]} 68. Kc2 {[%emt 0:00:03]} Qf2+ {[%emt 0:00:00]} 69. Kc3 {[%emt 0:00:23]} Qd4+ {[%emt 0:00:06]} 70. Kc2 {[%emt 0:00:01]} Qf2+ {[%emt 0:00:00]} 71. Kd3 {[%emt 0:00:05]} Qd4+ {[%emt 0:00:29]} 72. Ke2 {[%emt 0:00:01]} Qb2+ {[%emt 0:00:09]} 73. Kd1 {[%emt 0:00:12]} Qd4+ {[%emt 0:00:04]} 1/2-1/2

[Event "Moscow Rapid-ch 2018"]
[Site "Moscow"]
[Date "2018.12.09"]
[Round "10"]
[White "Sychev, Klementy"]
[Black "Ulko, Jaroslav"]
[Result "1-0"]
[ECO "B18"]
[WhiteElo "2537"]
[BlackElo "2439"]
[Annotator "ChessBase"]
[PlyCount "88"]
[EventDate "2018.12.08"]
[EventType "swiss"]
[EventCountry "RUS"]
[SourceTitle "playchess.com"]
[Source "ChessBase"]
[SourceQuality "1"]
[TimeControl "900+10"]

1. e4 {[%emt 0:00:00]} c6 {[%emt 0:00:00]} 2. d4 {[%emt 0:00:00]} d5 {[%emt 0:00:00]} 3. Nd2 {[%emt 0:00:10]} dxe4 {[%emt 0:00:00]} 4. Nxe4 {[%emt 0:00:02]} Bf5 {[%emt 0:00:00]} 5. Ng3 {[%emt 0:00:01]} Bg6 {[%emt 0:00:00]} 6. c3 {[%emt 0:00:01]} e6 {[%emt 0:00:13]} 7. h4 {[%emt 0:00:12]} h6 {[%emt 0:00:04]} 8. N1e2 {[%emt 0:00:02]} Nf6 {[%emt 0:00:17]} 9. Nf4 {[%emt 0:00:01]} Bh7 {[%emt 0:00:02]} 10. Nfh5 {[%emt 0:00:03]} Nbd7 {[%emt 0:00:16]} 11. Bc4 {[%emt 0:00:02]} Nxh5 {[%emt 0:00:26]} 12. Nxh5 {[%emt 0:00:09]} Nf6 {[%emt 0:00:01]} 13. O-O {[%emt 0:00:13]} Nxh5 {[%emt 0:03:32]} 14. Qxh5 {[%emt 0:00:05]} Bg6 {[%emt 0:00:06]} 15. Qg4 {[%emt 0:00:01]} Qf6 {[%emt 0:01:28]} 16. h5 {[%emt 0:02:44]} Bf5 {[%emt 0:02:39]} 17. Qg3 {[%emt 0:00:02]} O-O-O {[%emt 0:01:58]} 18. Bf4 {[%emt 0:00:01]} Rg8 {[%emt 0:00:05]} 19. b4 {[%emt 0:01:04]} g6 {[%emt 0:02:06]} 20. b5 {[%emt 0:04:28]} Be4 {[%emt 0:00:05]} 21. Rfe1 {[%emt 0:01:44]} Qf5 {[%emt 0:03:18]} 22. f3 {[%emt 0:05:15]} Bd5 {[%emt 0:00:38]} 23. Re5 {[%emt 0:01:02]} Qf6 {[%emt 0:01:04]} 24. Bxd5 {[%emt 0:00:24]} cxd5 {[%emt 0:00:10]} 25. c4 {[%emt 0:01:02]} gxh5 {[%emt 0:00:17]} 26. Qh2 {[%emt 0:00:18]} Bd6 {[%emt 0:00:12]} 27. cxd5 {[%emt 0:00:05]} Bxe5 {[%emt 0:00:01]} 28. Rc1+ {[%emt 0:00:16]} Kd7 {[%emt 0:00:05]} 29. dxe5 {[%emt 0:00:10]} Qg6 {[%emt 0:00:22]} 30. dxe6+ {[%emt 0:00:09]} Qxe6 {[%emt 0:00:07]} 31. Qh4 {[%emt 0:00:04]} Rc8 {[%emt 0:00:14]} 32. Rd1+ {[%emt 0:00:03]} Ke8 {[%emt 0:00:01]} 33. Qxh5 {[%emt 0:00:21]} Rc2 {[%emt 0:00:14]} 34. Rd2 {[%emt 0:00:11]} Qb6+ {[%emt 0:00:14]} 35. Kh2 {[%emt 0:00:06]} Rxd2 {[%emt 0:00:01]} 36. Bxd2 {[%emt 0:00:09]} Qf2 {[%emt 0:00:03]} 37. Qh3 {[%emt 0:00:16]} Qxd2 {[%emt 0:00:07]} 38. Qc8+ {[%emt 0:00:01]} Qd8 {[%emt 0:00:01]} 39. Qxb7 {[%emt 0:00:02]} Qh4+ {[%emt 0:00:09]} 40. Kg1 {[%emt 0:00:01]} Qe1+ {[%emt 0:00:01]} 41. Kh2 {[%emt 0:00:01]} Qxe5+ {[%emt 0:00:01]} 42. Kh1 {[%emt 0:00:01]} Qh5+ {[%emt 0:00:09]} 43. Kg1 {[%emt 0:00:02]} Qc5+ {[%emt 0:00:01]} 44. Kh1 {[%emt 0:00:02]} Rg5 {[%emt 0:00:10]} 1-0

[Event "Moscow Rapid-ch 2018"]
[Site "Moscow"]
[Date "2018.12.09"]
[Round "10"]
[White "Golubov, Saveliy"]
[Black "Tsvetkov, Andrey"]
[Result "1-0"]
[ECO "B54"]
[WhiteElo "2482"]
[BlackElo "2338"]
[Annotator "RC"]
[PlyCount "79"]
[EventDate "2018.12.08"]
[EventType "swiss"]
[EventCountry "RUS"]
[SourceTitle "playchess.com"]
[Source "ChessBase"]
[SourceQuality "1"]
[TimeControl "900+10"]

1. e4 {[%emt 0:00:00]} c5 {[%emt 0:00:00]} 2. Nf3 {[%emt 0:00:00]} d6 {[%emt 0:00:00]} 3. d4 {[%emt 0:00:00]} cxd4 {[%emt 0:00:00]} 4. Nxd4 {[%emt 0:00:00]} Nf6 {[%emt 0:00:00]} 5. f3 {[%emt 0:00:00]} e5 {[%emt 0:00:00]} 6. Nb3 {[%emt 0:00:00]} a5 {[%emt 0:00:00]} 7. Bb5+ {[%emt 0:00:01]} Bd7 {[%emt 0:00:24]} 8. a4 {[%emt 0:00:11]} Be7 {[%emt 0:00:19]} 9. Nc3 {[%emt 0:00:15]} O-O {[%emt 0:00:03]} 10. Be3 {[%emt 0:00:07]} Nc6 {[%emt 0:00:23]} 11. O-O {[%emt 0:01:13]} Nb4 {[%emt 0:00:06]} 12. Bxd7 {[%emt 0:00:21]} Qxd7 {[%emt 0:00:03]} 13. Nb5 {[%emt 0:00:03]} d5 {[%emt 0:01:06]} 14. c3 {[%emt 0:07:18]} Nc6 {[%emt 0:00:04]} 15. Bg5 {[%emt 0:00:04]} Rad8 {[%emt 0:02:22]} 16. Qc2 {[%emt 0:00:53]} dxe4 {[%emt 0:01:46]} 17. Bxf6 {[%emt 0:00:34]} Bxf6 {[%emt 0:00:03]} 18. Nc5 {[%emt 0:00:39]} Qd2 {[%emt 0:00:47]} 19. Qxe4 {[%emt 0:00:27]} Qxb2 {[%emt 0:00:26]} 20. Rfb1 {[%emt 0:00:38]} Qd2 {[%emt 0:03:53]} 21. Nxb7 {[%emt 0:00:02]} Rd5 {[%emt 0:00:02]} 22. c4 {[%emt 0:01:05]} Rxb5 {[%emt 0:00:04]} 23. axb5 {[%emt 0:00:35]} Nd4 {[%emt 0:00:02]} 24. Rd1 {[%emt 0:00:25]} Qb2 {[%emt 0:00:20]} 25. Kh1 {[%emt 0:00:34]} Ne2 {[%emt 0:02:13]} 26. Qb1 {[%emt 0:01:58]} Qc3 {[%emt 0:00:09]} 27. Ra2 {[%emt 0:00:02]} Nf4 {[%emt 0:01:46]} 28. Nd6 {[%emt 0:00:09]} Qe3 {[%emt 0:00:21]} 29. Ne4 {[%emt 0:00:29]} Be7 {[%emt 0:00:03]} 30. Qc1 {[%emt 0:00:29]} Qb3 {[%emt 0:00:21]} 31. Rb2 {[%emt 0:00:18]} Qa3 {[%emt 0:00:08]} 32. Qc2 {[%emt 0:00:09]} Qe3 {[%emt 0:00:36]} 33. Rb3 {[%emt 0:00:15]} Qa7 {[%emt 0:00:08]} 34. c5 {[%emt 0:00:09]} Ne6 35. b6 {[%emt 0:00:18]} Qa6 {[%emt 0:00:16]} 36. b7 {[%emt 0:00:30]} Nd4 {[%emt 0:00:04]} 37. Qd3 {[%emt 0:00:09]} Qa7 {[%emt 0:00:05]} 38. Rbb1 {[%emt 0:00:12]} a4 {[%emt 0:00:09]} 39. Qc4 {[%emt 0:00:18]} a3 {[%emt 0:00:05]} 40. c6 {[%emt 0:00:20]} 1-0

[Event "Moscow Rapid-ch 2018"]
[Site "Moscow"]
[Date "2018.12.09"]
[Round "10"]
[White "Yeletsky, Ivan"]
[Black "Lavrov, Maxim"]
[Result "1/2-1/2"]
[ECO "E73"]
[WhiteElo "2406"]
[BlackElo "2387"]
[Annotator "NA"]
[PlyCount "117"]
[EventDate "2018.12.08"]
[EventType "swiss"]
[EventCountry "RUS"]
[SourceTitle "playchess.com"]
[Source "ChessBase"]
[SourceQuality "1"]
[TimeControl "900+10"]

1. d4 Nf6 2. c4 g6 3. Nc3 Bg7 4. e4 d6 5. Be2 O-O 6. Bg5 c5 7. d5 e6 8. Qd2 exd5 9. exd5 Re8 10. Nf3 Bg4 11. O-O Bxf3 12. Bxf3 Nbd7 13. Rae1 Qb6 14. h3 a6 15. Qc2 Rxe1 16. Rxe1 Ne5 17. Be2 Re8 18. b3 Ned7 19. Bd2 Qd8 20. a4 Re7 21. Bf1 Qe8 22. Rxe7 Qxe7 23. a5 h5 24. g3 h4 25. g4 Qe5 26. Bd3 Qd4 27. Be3 Qe5 28. Bd2 Qd4 29. Ne2 Qa1+ 30. Qc1 Qxc1+ 31. Nxc1 Ne5 32. Be2 Ne4 33. Bf4 Nc3 34. Kf1 Bf6 35. Nd3 Ne4 36. Kg2 Nc3 37. Bf1 Ne4 38. Be3 Nd7 39. Kf3 Nc3 40. Bf4 Be7 41. Ke3 f6 42. Bh2 Ne5 43. f4 Nxd3 44. Bxd3 Kf7 45. Kd2 Na2 46. Be4 Nb4 47. Ke2 Bf8 48. g5 f5 49. Bb1 Bg7 50. Bg1 Bd4 51. Bxd4 cxd4 52. Kd2 Ke7 53. Kc1 d3 54. Kd2 Kf7 55. Kc3 Nc2 56. Kxd3 Ne1+ 57. Ke2 Ng2 58. Kf3 Ne1+ 59. Kf2 1/2-1/2

[Event "Moscow Rapid-ch 2018"]
[Site "Moscow"]
[Date "2018.12.09"]
[Round "10"]
[White "Dragomarezkij, Evgeni"]
[Black "Chudinovskikh, Alexander M"]
[Result "1-0"]
[ECO "A33"]
[WhiteElo "2385"]
[BlackElo "2184"]
[Annotator "NA"]
[PlyCount "97"]
[EventDate "2018.12.08"]
[EventType "swiss"]
[EventCountry "RUS"]
[SourceTitle "playchess.com"]
[Source "ChessBase"]
[SourceQuality "1"]
[TimeControl "900+10"]

1. c4 {[%emt 0:00:00]} c5 2. Nf3 Nc6 3. d4 cxd4 4. Nxd4 Nf6 5. Nc3 e6 6. Bf4 d5 7. cxd5 Nxd5 8. Nxc6 bxc6 9. Bd2 Bc5 {[%emt 0:01:23]} 10. e3 {[%emt 0:01:06]} O-O {[%emt 0:00:08]} 11. Be2 {[%emt 0:00:31]} e5 {[%emt 0:00:11]} 12. Na4 {[%emt 0:01:52]} Bd6 {[%emt 0:00:52]} 13. Rc1 {[%emt 0:00:19]} e4 {[%emt 0:01:14]} 14. O-O {[%emt 0:02:19]} Qg5 {[%emt 0:00:55]} 15. Re1 {[%emt 0:01:46]} Bh3 {[%emt 0:00:45]} 16. Bf1 {[%emt 0:00:25]} Qe5 {[%emt 0:00:28]} 17. g3 {[%emt 0:00:19]} Bxf1 18. Rxf1 {[%emt 0:00:02]} Rac8 {[%emt 0:00:34]} 19. Bc3 {[%emt 0:00:24]} Qf5 {[%emt 0:01:15]} 20. Qd4 {[%emt 0:00:54]} f6 {[%emt 0:00:47]} 21. Bd2 {[%emt 0:01:59]} Rfe8 {[%emt 0:00:26]} 22. Nc3 {[%emt 0:00:18]} Re5 {[%emt 0:01:02]} 23. Nxd5 {[%emt 0:00:19]} Rxd5 {[%emt 0:00:04]} 24. Qc4 {[%emt 0:00:14]} Kh8 {[%emt 0:00:29]} 25. Rfd1 {[%emt 0:00:34]} h5 {[%emt 0:01:23]} 26. Bb4 {[%emt 0:03:00]} Rxd1+ {[%emt 0:01:15]} 27. Rxd1 {[%emt 0:00:02]} Bxb4 {[%emt 0:00:10]} 28. Qxb4 {[%emt 0:00:02]} Qf3 {[%emt 0:00:09]} 29. Rd7 {[%emt 0:00:30]} h4 {[%emt 0:00:43]} 30. Qe7 {[%emt 0:00:34]} Qg4 {[%emt 0:02:58]} 31. Rd4 {[%emt 0:00:38]} hxg3 {[%emt 0:00:14]} 32. hxg3 {[%emt 0:00:02]} f5 {[%emt 0:00:04]} 33. Qd7 {[%emt 0:00:31]} Rb8 {[%emt 0:00:31]} 34. b3 {[%emt 0:00:05]} c5 {[%emt 0:02:10]} 35. Rd5 {[%emt 0:00:01]} Rf8 {[%emt 0:00:14]} 36. Rxc5 {[%emt 0:00:10]} a6 {[%emt 0:00:17]} 37. Rc8 {[%emt 0:00:17]} Rxc8 {[%emt 0:00:05]} 38. Qxc8+ {[%emt 0:00:01]} Kh7 {[%emt 0:00:00]} 39. Qxa6 {[%emt 0:00:03]} Qd1+ {[%emt 0:00:06]} 40. Qf1 {[%emt 0:00:02]} Qc2 {[%emt 0:00:01]} 41. Qa1 {[%emt 0:00:34]} Kg6 {[%emt 0:00:08]} 42. b4 {[%emt 0:00:19]} Kh6 {[%emt 0:00:19]} 43. b5 {[%emt 0:00:19]} g5 {[%emt 0:00:01]} 44. Qf6+ {[%emt 0:00:04]} Kh5 {[%emt 0:00:01]} 45. Qxf5 {[%emt 0:00:12]} Qb1+ {[%emt 0:00:36]} 46. Kg2 {[%emt 0:00:03]} Kh6 {[%emt 0:00:16]} 47. Qe6+ {[%emt 0:00:18]} Kh5 {[%emt 0:00:07]} 48. b6 {[%emt 0:00:11]} g4 {[%emt 0:00:14]} 49. Qf5+ {[%emt 0:00:12]} 1-0

[Event "Moscow Rapid-ch 2018"]
[Site "Moscow"]
[Date "2018.12.09"]
[Round "10"]
[White "Pavlov, Danila"]
[Black "Dudin, Gleb"]
[Result "1-0"]
[ECO "C11"]
[WhiteElo "2323"]
[BlackElo "2303"]
[Annotator "NA"]
[PlyCount "55"]
[EventDate "2018.12.08"]
[EventType "swiss"]
[EventCountry "RUS"]
[SourceTitle "playchess.com"]
[Source "ChessBase"]
[SourceQuality "1"]
[TimeControl "900+10"]

1. e4 {[%emt 0:00:00]} e6 {[%emt 0:00:02]} 2. d4 {[%emt 0:00:00]} d5 {[%emt 0:00:01]} 3. Nc3 {[%emt 0:00:00]} Nf6 {[%emt 0:00:07]} 4. Bg5 {[%emt 0:00:00]} dxe4 {[%emt 0:00:02]} 5. Nxe4 {[%emt 0:00:21]} Be7 {[%emt 0:00:01]} 6. Bxf6 {[%emt 0:01:07]} gxf6 {[%emt 0:00:01]} 7. Nf3 {[%emt 0:01:05]} f5 {[%emt 0:00:14]} 8. Nc3 {[%emt 0:00:02]} a6 {[%emt 0:00:10]} 9. g3 {[%emt 0:00:05]} b5 {[%emt 0:00:30]} 10. Bg2 {[%emt 0:00:02]} Bb7 {[%emt 0:00:03]} 11. O-O {[%emt 0:00:21]} Bf6 {[%emt 0:02:34]} 12. Qe2 {[%emt 0:01:21]} O-O {[%emt 0:00:31]} 13. Rad1 {[%emt 0:00:04]} Re8 {[%emt 0:04:31]} 14. Qd2 {[%emt 0:01:25]} Nd7 {[%emt 0:01:05]} 15. Ne2 {[%emt 0:00:02]} c5 {[%emt 0:02:35]} 16. Nf4 {[%emt 0:00:56]} cxd4 {[%emt 0:00:14]} 17. Nh5 {[%emt 0:00:06]} Bh8 {[%emt 0:00:23]} 18. Nxd4 {[%emt 0:00:59]} Bxg2 {[%emt 0:00:01]} 19. Kxg2 {[%emt 0:00:01]} Ne5 {[%emt 0:00:21]} 20. f3 {[%emt 0:01:33]} Nc4 {[%emt 0:00:59]} 21. Qh6 {[%emt 0:00:50]} Qb6 {[%emt 0:03:30]} 22. b3 {[%emt 0:01:49]} Rad8 {[%emt 0:00:01]} 23. c3 {[%emt 0:00:19]} Ne5 {[%emt 0:00:40]} 24. Nf6+ {[%emt 0:01:34]} Bxf6 {[%emt 0:00:04]} 25. Qxf6 {[%emt 0:00:01]} Qc7 {[%emt 0:00:16]} 26. h4 {[%emt 0:00:05]} h5 {[%emt 0:00:12]} 27. Rfe1 {[%emt 0:00:32]} Ng6 {[%emt 0:00:22]} 28. Nxe6 1-0

[Event "Moscow Rapid-ch 2018"]
[Site "Moscow"]
[Date "2018.12.09"]
[Round "10"]
[White "Utiatskaja, Irina"]
[Black "Bezgodova, Svetlana"]
[Result "1-0"]
[ECO "C24"]
[WhiteElo "2246"]
[BlackElo "2046"]
[Annotator "NA"]
[PlyCount "93"]
[EventDate "2018.12.08"]
[EventType "swiss"]
[EventCountry "RUS"]
[SourceTitle "playchess.com"]
[Source "ChessBase"]
[SourceQuality "1"]
[TimeControl "900+10"]

1. e4 {[%emt 0:00:00]} e5 {[%emt 0:00:00]} 2. Bc4 {[%emt 0:00:00]} Nf6 {[%emt 0:00:00]} 3. d3 {[%emt 0:00:00]} d5 {[%emt 0:00:00]} 4. exd5 {[%emt 0:00:05]} Nxd5 {[%emt 0:00:00]} 5. Nf3 {[%emt 0:00:28]} Nc6 {[%emt 0:00:00]} 6. Nc3 {[%emt 0:00:06]} Be6 {[%emt 0:00:00]} 7. Bb5 {[%emt 0:00:23]} Nxc3 {[%emt 0:00:06]} 8. bxc3 {[%emt 0:00:02]} Bd6 {[%emt 0:00:01]} 9. Ng5 {[%emt 0:01:44]} Bf5 {[%emt 0:00:27]} 10. Qf3 {[%emt 0:00:15]} Qd7 {[%emt 0:00:03]} 11. O-O {[%emt 0:01:20]} O-O {[%emt 0:00:02]} 12. Re1 {[%emt 0:00:37]} a6 {[%emt 0:00:48]} 13. Bxc6 {[%emt 0:00:20]} bxc6 {[%emt 0:00:02]} 14. Ne4 {[%emt 0:02:41]} Be7 {[%emt 0:00:13]} 15. Qg3 {[%emt 0:00:31]} f6 {[%emt 0:00:12]} 16. Qe3 {[%emt 0:01:22]} Rfb8 {[%emt 0:00:22]} 17. f4 {[%emt 0:01:01]} exf4 {[%emt 0:05:03]} 18. Qxf4 {[%emt 0:00:02]} Bg6 {[%emt 0:00:21]} 19. Qg3 {[%emt 0:00:35]} a5 {[%emt 0:00:28]} 20. a4 {[%emt 0:00:50]} c5 {[%emt 0:00:32]} 21. Bf4 {[%emt 0:00:27]} c4 {[%emt 0:00:42]} 22. d4 {[%emt 0:00:30]} Rb2 {[%emt 0:00:28]} 23. Qf2 {[%emt 0:00:37]} Qc6 {[%emt 0:00:22]} 24. Bc1 {[%emt 0:00:52]} Rbb8 {[%emt 0:00:29]} 25. Nd2 {[%emt 0:01:03]} Bd6 {[%emt 0:00:17]} 26. Qf1 {[%emt 0:00:09]} Bf7 {[%emt 0:00:13]} 27. Ne4 {[%emt 0:00:03]} Bf8 {[%emt 0:00:02]} 28. Ba3 {[%emt 0:00:50]} Re8 {[%emt 0:00:17]} 29. Bxf8 {[%emt 0:00:06]} Rxe4 {[%emt 0:00:09]} 30. Bc5 Rae8 {[%emt 0:00:09]} 31. Rab1 {[%emt 0:00:52]} Qxa4 {[%emt 0:00:19]} 32. Rxe4 {[%emt 0:00:02]} Rxe4 {[%emt 0:00:01]} 33. Rb8+ {[%emt 0:00:41]} Re8 {[%emt 0:00:01]} 34. Qb1 {[%emt 0:00:31]} h5 {[%emt 0:00:09]} 35. h3 {[%emt 0:00:07]} Kh7 {[%emt 0:00:15]} 36. Rb7 {[%emt 0:00:20]} Qc6 {[%emt 0:00:28]} 37. Rb8 {[%emt 0:00:17]} Re2 {[%emt 0:00:07]} 38. Qf1 {[%emt 0:00:04]} Bg6 {[%emt 0:00:12]} 39. Qxe2 {[%emt 0:00:19]} Qa4 {[%emt 0:00:12]} 40. Rb1 {[%emt 0:00:18]} Qxc2 {[%emt 0:00:27]} 41. Qxc2 {[%emt 0:00:01]} Bxc2 {[%emt 0:00:02]} 42. Rb7 {[%emt 0:00:06]} c6 {[%emt 0:00:04]} 43. Ra7 {[%emt 0:00:04]} a4 {[%emt 0:00:02]} 44. Ra6 {[%emt 0:00:01]} Be4 {[%emt 0:00:11]} 45. Rxa4 {[%emt 0:00:02]} Bd5 {[%emt 0:00:01]} 46. Kf2 {[%emt 0:00:02]} Kg6 {[%emt 0:00:01]} 47. Ra7 1-0